{"text_format":"1","workbook":"xlsx","n_sheets":4,"sheets":["Instruktioner","Visualisera","Data","Regiondata"],"not_rendered":{"charts":6,"images":3,"macros":1,"external_links":0,"defined_names":15,"comments":0,"pivot_tables":0},"unopened":[],"bounds":{"document_bytes":16777216,"sheet_cells":100000,"rows_first":2000,"rows_last":500,"rows_between":2000,"halvings":0,"cell_chars":16384,"cell_head_chars":4096},"cells_cut":0,"cells_raw":0,"read":"whole","date_system":"1900"}

{"sheet":"Instruktioner","index":0,"n_rows":25,"n_cols":2,"rows_kept":25,"cut":false,"hidden":false,"merged":[]}
[]
[null,{"$error":"#VALUE!"}]
[null,"Socialstyrelsens riktvärdesmodell - översikt"]
[]
[null,"I denna fil finns en visualisering som ger översikt över Socialstyrelsens riktvärden för vårdplatser inom somatisk vård (exklusive intensivvård), samt för intensivvård, på kort sikt. Då datakällor, definitioner och tidsperiod kan skilja sig åt kan även inmatat antal vårdplatser skilja sig från det till Socialstyrelsen inrapporterade antalet, även vid jämförelse av samma vårdgivare."]
[]
[null,"Hur du använder visualiseringen"]
[null,"Riktvärden för regioner"]
[null,"I modellen kan du välja region och se antal disponibla vårdplater samt riktvärdet för antal disponibla vårdplatser på kort sikt i just den regionen. För varje region kan du markera vilka sjukhus som ska inkluderas i analysen genom att välja \"Visa\" eller \"Dölj\". Regionens riktvärde justeras då till att bara inkludera valda sjukhus och antal disponibla vårdplatser justeras med lika stor andel. För att \"antal disponibla vårdplatser\"  ska stämma överens med regionens antal disponibla vårdplatser behöver alla sjukhus vara valda - annars är detta värde ett estimat. Väljer du \"Sverige\" som region så inkluderar riktvärdet samtliga sjukhus, även de du valt att dölja."]
[]
[null,"Riktvärden för sjukhus"]
[null,"När du har valt region kan du även välja sjukhus. För sjukhus kan du se antalet disponibla vårdplatser samt dess riktvärde. Du kan även själv mata in sjukhusets aktuella disponibla vårdplatser."]
[]
[null,"Om riktvärdena"]
[null,"Riktvärdena finns framtagna för varje region och varje sjukhus i Sverige och avser ett önskvärt genomsnittligt antal disponibla vårdplatser över året. Indelningen i olika sjukhus baseras på den produktionsdata som rapporteras in i patientregistret (PAR)."]
[]
[null,"Riktvärden för disponibla vårdplatser exklusive intensivvårdsavdelningar"]
[null,"Riktvärdena för vårdplatser utgår från regionernas och sjukhusens nuvarande produktion av sluten vård, exklusive intensivvård och med hänsyn till patienter som väntar på planerad vård och på akutmottagningar. Vård i hemmet inkluderas enbart i riktvärdet och nuvarande antal vårdplatser om det i vald region/på det valda sjukhuset registreras som slutenvård i patientregistret. Vård som utförs inom sluten primärvård, vilket exempelvis inkluderar disponibla vårdplatser tillgängliga på sjukstugor, räknas med i riktvärdet i de fall där enheten rapporterar in det som sluten vård till patientregistret."]
[]
[null,"Riktvärden för disponibla vårdplatser på intensivvårdsavdelning (IVA)"]
[null,"Har sjukhuset en eller flera intensivvårdsavdelningar visas det totala antalet disponibla IVA-platser samt riktvärdet. Riktvärdena för intensivvård är framtagna med hänsyn till riktlinjer från Svenska intensivvårdsregistret om minst 4 vårdplatser per avdelning. Även IVA-platser kan visualiseras för hela regionen och/eller för ett valt sjukhus. Du kan också själv mata in sjukhusets aktuella disponibla intensivvårdplatser."]
[]
[null,"Läs mer om vårdplatser och riktvärden"]
[null,"Beräkningen av riktvärden för disponibla vårdplatser utgår från beräkningen av riktvärden på kort sikt. Samtliga rapporter och metodbeskrivningar om riktvärdesberäkningar finns att finna på följande länk:"]
[null,"Länk till Socialstyrelsens sida om vårdplatser"]

{"sheet":"Visualisera","index":1,"n_rows":155,"n_cols":21,"rows_kept":155,"cut":false,"hidden":false,"merged":[[63,11,63,12],[6,2,6,3],[1,2,1,3],[32,16,32,17],[53,16,53,17],[57,8,62,9],[56,11,56,12],[57,11,57,12],[59,11,61,11],[53,8,56,9],[53,11,54,11],[62,11,62,12]]}
[]
[null,null,"Översikt av riktvärden för disponibla vårdplatser"]
[]
[null,null,null,"Välj region",null,"Välj sjukhus"]
[null,null,null,null,null,null,null,null,"Somatisk vård exklusive IVA",null,null,null,null,null,null,null,"IVA"]
[]
[null,null,"Välj vilka sjukhus som ska visas genom att markera nedan",null,null,"Sjukhus som inkluderas i analysen",null,null,{"$f":"CONCATENATE(\"Region: \",IF(RegionCell<>\"\",RegionCell,\"Ingen region vald.\"))","v":"Region: Ingen region vald."},null,null,{"$f":"CONCATENATE(\"Sjukhus: \",IF(HospitalCell<>\"\",HospitalCell,\"Inget sjukhus valt.\"))","v":"Sjukhus: Inget sjukhus valt."},null,null,null,null,{"$f":"CONCATENATE(\"Region: \",IF(RegionCell<>\"\",RegionCell,\"Ingen region vald.\"))","v":"Region: Ingen region vald."},null,null,{"$f":"CONCATENATE(\"Sjukhus: \",IF(HospitalCell<>\"\",HospitalCell,\"Inget sjukhus valt.\"))","v":"Sjukhus: Inget sjukhus valt."}]
[null,null,null,null,17,null,null,null,"Antal disponibla vårdplatser1 ",{"$f":"IFERROR(INDEX(Regiondata[Regionernas egna disp vpl], MATCH(RegionCell, Regiondata[Region], 0))*AndelAvRiktvärde, \"\")","v":""},null,"Sjukhusets antal disponibla vårdplatser (frivilligt att fylla i)",null,null,null,null,"Antal disponibla intensivvårdplatser",{"$f":"IFERROR(INDEX(Regiondata[Regionernas disponibla IVA-platser], MATCH(RegionCell, Regiondata[Region], 0))*AndelAvRiktvärdeIVA, \"\")","v":""},null,"Sjukhusets antal disponibla intensivvårdplatser (frivilligt att fylla i)"]
[null,null,null,null,45,null,null,null,"Riktvärde för antal disponibla vårdplatser på kort sikt2 3",{"$f":"_xlfn.IFNA(SUMIFS(HospitalData[[#Data],[#Totals],[Riktvärde kort sikt]],HospitalData[[#Data],[#Totals],[Region]],RegionCell,HospitalData[[#Data],[#Totals],[Visa]],\"\"),\"\")","v":0},null,"Sjukhusets inrapporterade antal disponibla vårdplatser",{"$f":"IFERROR(IF(RegionCell=\"Sverige\",INDEX(HospitalData[Sjukhusets egna disp vpl],MATCH(HospitalCell,HospitalData[Sjukhus],0)),INDEX(HospitalData[Sjukhusets egna disp vpl], MATCH(1, INDEX((HospitalData[Region]=RegionCell)*(HospitalData[Sjukhus]=HospitalCell), 0, 1), 0))),\"-\")","v":"-"},null,null,null,"Riktvärde för antal disponibla intensivvårdplatser på kort sikt6",{"$f":"_xlfn.IFNA(SUMIFS(HospitalData[[#Data],[#Totals],[Riktvärde IVA kort sikt med hänsyn till riktlinjer]],HospitalData[[#Data],[#Totals],[Region]],RegionCell,HospitalData[[#Data],[#Totals],[Visa]],\"\"),\"\")","v":0},null,"Sjukhusets inrapporterade antal disponibla intensivvårdplatser",{"$f":"IFERROR(IF(RegionCell=\"Sverige\",INDEX(HospitalData[Disponibla vårdplatser IVA], MATCH(HospitalCell,HospitalData[Sjukhus],0)),INDEX(HospitalData[Disponibla vårdplatser IVA], MATCH(1, IF(HospitalData[Sjukhus]=HospitalCell, IF(HospitalData[Region]=RegionCell, 1)), 0))),\"-\")","v":"-"}]
[null,null,null,null,46,null,null,null,"Gap (antal vårdplatser)4",{"$f":"IFERROR(_xlfn.IFNA(J9-J8,\"\"),\"\")","v":""},null,"Sjukhusets riktvärde för disponibla vårdplatser på kort sikt5",{"$f":"IFERROR(IF(RegionCell=\"Sverige\",INDEX(HospitalData[Riktvärde kort sikt],MATCH(HospitalCell,HospitalData[Sjukhus],0)),INDEX(HospitalData[Riktvärde kort sikt], MATCH(1, INDEX((HospitalData[Region]=RegionCell)*(HospitalData[Sjukhus]=HospitalCell), 0, 1), 0))),\"-\")","v":"-"},null,null,null,"Gap (antal vårdplatser)4",{"$f":"IF(ISBLANK(R8),\"\",IFERROR(_xlfn.IFNA(R9-R8,\"\"),\"\"))","v":""},null,"Sjukhusets riktvärde för disponibla intensivvårdplatser på kort sikt6",{"$f":"IFERROR(IF(RegionCell=\"Sverige\",INDEX(HospitalData[Riktvärde IVA kort sikt med hänsyn till riktlinjer],\nMATCH(HospitalCell,HospitalData[Sjukhus],0)),INDEX(HospitalData[Riktvärde IVA kort sikt med hänsyn till riktlinjer],\nMATCH(1, IF((HospitalData[Sjukhus]=HospitalCell)*(HospitalData[Region]=RegionCell), 1), 0))),\"-\")","v":"-"}]
[null,null,null,null,121,null,null,null,"Gap (%)4",{"$f":"IFERROR(_xlfn.IFNA(-(J9-J8)/J8,\"\"),\"\")","v":""},null,"Gap (antal vårdplatser)4",{"$f":"IF(M9=0,IF(ISBLANK(M8),\"\",IFERROR(M10-M8,\"\")),IFERROR(M10-M9,\"\"))","v":""},null,null,null,"Gap (%)4",{"$f":"IFERROR(_xlfn.IFNA(-(R9-R8)/R8,\"\"),\"\")","v":""},null,"Gap (antal vårdplatser)4",{"$f":"IF(U9=0,IF(ISBLANK(U8),\"\",IFERROR(U10-U8,\"\")),IFERROR(U10-U9,\"\"))","v":""}]
[null,null,null,null,null,null,null,null,null,null,null,"Gap (%)4",{"$f":"IF(M9=0,IF(ISBLANK(M8),\"\",IFERROR(-(M10-M8)/M8,\"\")),IFERROR(-(M10-M9)/M9,\"\"))","v":""},null,null,null,null,null,null,"Gap (%)4",{"$f":"IF(U9=0,IF(ISBLANK(U8),\"\",IFERROR(-(U10-U8)/U8,\"\")),IFERROR(-(U10-U9)/U9,\"\"))","v":""}]
[null,null,null,null,null,null,null,null,null,null,null,"Andel av regionens riktvärde för disponibla vårdplatser",{"$f":"IFERROR(M10/J9,\"\")","v":""},null,null,null,null,null,null,"Andel av regionens riktvärde för disponibla intensivvårdplatser",{"$f":"IFERROR(U10/R9,\"\")","v":""}]
[]
[null,null,null,null,null,null,null,null,null,null,null,"Regionens resterande vårdplatser i riktvärdet på kort sikt",{"$f":"J9-M10","v":{"$error":"#VALUE!"}},null,null,null,null,null,null,"Regionens resterande intensivvårdplatser i riktvärdet på kort sikt",{"$f":"R9-U10","v":{"$error":"#VALUE!"}}]
[]
[]
[]
[]
[]
[]
[]
[]
[]
[]
[]
[]
[]
[]
[]
[]
[]
[]
[]
[]
[]
[]
[]
[]
[]
[]
[]
[]
[]
[]
[]
[]
[]
[]
[]
[]
[]
[]
[null,null,null,null,null,null,null,null,"1Antalet disponibla vårdplatser per region justeras automatiskt med samma andel som riktvärdet när ett sjukhus avmarkeras i översikten. Om du valt att inte inkludera regionens samtliga sjukhus så visas en skattning av de valda sjukhusens antal disponibla vårdplatser.",null,null,"3Varav platser för att minska antal patienter som väntar över vårdgarantins gräns",{"$f":"_xlfn.IFNA(INDEX(Regiondata[Varav platser baserat på patienter som väntar på vård], MATCH(RegionCell,Regiondata[Region],0)),\"\")","v":""},null,null,null,"6Riktvärdena tar hänsyn till riktlinjerna om minst 4 platser per avdelning."]
[]
[]
[null,null,null,null,null,null,null,null,null,null,null,"4Gapet avser skillnaden mellan riktvärdet och antalet disponibla vårdplatser. Det inrapporterade antalet disponibla vårdplatser används i första hand och det egeninmatade värdet i andra hand."]
[null,null,null,null,null,null,null,null,"2Riktvärdena utgår från regionernas och sjukhusens nuvarande produktion av slutenvård, exklusive intensivvård och med hänsyn till patienter som väntar på planerad vård och på akutmottagningar. Vård i hemmet inkluderas därför enbart i riktvärdet och nuvarande antal vårdplatser om det i vald region/på det valda sjukhuset registreras som slutenvård i patientregistret. I de fall andra vårdformer avlastar den slutna vården kommer detta att reflekteras i ett lägre behov av disponibla vårdplatser - och därmed ett lägre riktvärde för disponibla vårdplatser på sikt."]
[]
[null,null,null,null,null,null,null,null,null,null,null,"5Varav sjukhusets uppskattade vårdplatsbehov för att minska\nantal patienter som väntar över vårdgarantins gräns:"]
[null,null,null,null,null,null,null,null,null,null,null,null,{"$f":"IFERROR(IF(RegionCell=\"Sverige\",INDEX(HospitalData[Varav platser baserat på patienter som väntar på vård], MATCH(HospitalCell,HospitalData[Sjukhus],0)),INDEX(HospitalData[Varav platser baserat på patienter som väntar på vård], MATCH(1, INDEX((HospitalData[Region]=RegionCell)*(HospitalData[Sjukhus]=HospitalCell), 0), 0))),\"-\")","v":"-"}]
[]
[null,null,null,null,null,null,null,null,null,null,null,"Grund för väntetidsdata:"]
[null,null,null,null,null,null,null,null,null,null,null,{"$f":"_xlfn.IFNA(INDEX(Regiondata[Grund för väntetidsdata], MATCH(RegionCell,Regiondata[Region],0)),\"\")","v":""}]
[]
[]
[]
[]
[]
[]
[]
[]
[]
[]
[]
[]
[]
[]
[]
[]
[]
[]
[null,null,null,null,null,"Länssjukhuset i Kalmar"]
[null,null,null,null,null,"Länssjukhuset i Sundsvall - Härnösand"]
[null,null,null,null,null,"Länssjukhuset Ryhov"]
[null,null,null,null,null,"Malå Sjukstuga"]
[null,null,null,null,null,"Mandometerkliniken"]
[null,null,null,null,null,"Mora lasarett"]
[null,null,null,null,null,"Mälargården"]
[null,null,null,null,null,"Mälarsjukhuset"]
[null,null,null,null,null,"Nacka kommun Hallens äldrecentrum"]
[null,null,null,null,null,"Nacka Närsjukhus"]
[null,null,null,null,null,"Norra Älvsborgs Länssjukhus och Uddevalla sjukhus"]
[null,null,null,null,null,"Norrlands universitetssjukhus"]
[null,null,null,null,null,"Norrtälje sjukhus"]
[null,null,null,null,null,"Nya Karolinska Solna"]
[null,null,null,null,null,"Nyköpings lasarett"]
[null,null,null,null,null,"Nynäshamns sjukhus"]
[null,null,null,null,null,"Ortho o Spine Center"]
[null,null,null,null,null,"Ortopediska Huset"]
[null,null,null,null,null,"Oskarshamns sjukhus"]
[null,null,null,null,null,"Pajala sjukhem"]
[null,null,null,null,null,"Perituskliniken AB"]
[null,null,null,null,null,"Piteå Älvdals sjukhus"]
[null,null,null,null,null,"Rehab Station Stockholm"]
[null,null,null,null,null,"Rehabcenter Mösseberg"]
[null,null,null,null,null,"Ryggkirurgiskt Centrum AB"]
[null,null,null,null,null,"S:t Eriks sjukhus"]
[null,null,null,null,null,"Sabbatsbergs sjukhem"]
[null,null,null,null,null,"Sahlgrenska universitetssjukhuset"]
[null,null,null,null,null,"Simrishamns sjukhus"]
[null,null,null,null,null,"Sjukhem NÖSO"]
[null,null,null,null,null,"Sjukhusen i Väster"]
[null,null,null,null,null,"Sjukhuset i Arvika"]
[null,null,null,null,null,"Sjukhuset i Hässleholm"]
[null,null,null,null,null,"Sjukhuset i Säffle"]
[null,null,null,null,null,"Sjukhuset i Torsby"]
[null,null,null,null,null,"Skaraborgs sjukhus"]
[null,null,null,null,null,"Skellefteå lasarett"]
[null,null,null,null,null,"Skånes universitetssjukhus Lund"]
[null,null,null,null,null,"Skånes universitetssjukhus Malmö"]
[null,null,null,null,null,"Sollefteå sjukhus"]
[null,null,null,null,null,"Sollentuna sjukhus"]
[null,null,null,null,null,"Sophiahemmet"]
[null,null,null,null,null,"Sorsele Sjukstuga"]
[null,null,null,null,null,"Specialist Center Skåne AB"]
[null,null,null,null,null,"Specialistcenter Uppsala AB, S:t Johanniskliniken"]
[null,null,null,null,null,"Specialistsjukvården i Falkenberg"]
[null,null,null,null,null,"Stockholms sjukhem"]
[null,null,null,null,null,"Stora Sköndals sjukhus"]
[null,null,null,null,null,"Storumans Sjukstuga"]
[null,null,null,null,null,"Sunderby sjukhus"]
[null,null,null,null,null,"Södermalms läkarhus"]
[null,null,null,null,null,"Södersjukhuset"]
[null,null,null,null,null,"Södertälje sjukhus"]
[null,null,null,null,null,"Södertälje Ögonklinik"]
[null,null,null,null,null,"Södra Älvsborgs sjukhus"]
[null,null,null,null,null,"Tärnaby Sjukstuga"]
[null,null,null,null,null,"Universitetssjukhuset i Linköping"]
[null,null,null,null,null,"Universitetssjukhuset Örebro"]
[null,null,null,null,null,"Vilhelmina Sjukstuga"]
[null,null,null,null,null,"Visby lasarett"]
[null,null,null,null,null,"Vrinnevisjukhuset i Norrköping"]
[null,null,null,null,null,"Vårdgivare Bromma sjukhus"]
[null,null,null,null,null,"Värnamo sjukhus"]
[null,null,null,null,null,"Västerviks sjukhus"]
[null,null,null,null,null,"Västmanlands sjukhus Köping"]
[null,null,null,null,null,"Västmanlands sjukhus Sala"]
[null,null,null,null,null,"Västmanlands sjukhus Västerås"]
[null,null,null,null,null,"Åsele Sjukstuga"]
[null,null,null,null,null,"Ängelholms sjukhus"]
[null,null,null,null,null,"Örnsköldsviks sjukhus"]
[null,null,null,null,null,"Östersunds sjukhus"]
[null,null,null,null,null,"Överkalix sjukhem"]
[null,null,null,null,null,"Övertorneå sjukhem"]

{"sheet":"Data","index":2,"n_rows":154,"n_cols":11,"rows_kept":154,"cut":false,"hidden":true,"merged":[[1,7,1,8],[0,1,2,4],[1,9,1,10]]}
[null,"I denna flik klistras data för sjukhusen in - detta gäller kolumn B till I. Kolumn D, E, F, G och J avser värden för somatisk vård exklusive IVA och kolumn H och I avser värden för IVA. Riktvärdena som används i fliken Visualisera hämtas från kolumn I och J.\n\nKolumn K indikerar om sjukhuset ska inkluderas i analysen eller ej. För att visa sjukhuset lämnas rutan tom och för att dölja det ges värdet \"Dölj\". Då färgas raden orange. Du kan ändra vilka sjukhus som ska visas genom att markera kryssrutorna i fliken Visualisera."]
[null,null,null,null,null,null,null,"Orangea rader är sjukhus som du valt att dölja och därmed inte inkluderas i analysen. För att nollställa ditt val och inkludera samtliga sjukhus, klicka på knappen \"Återställ samtliga sjukhus\" i fliken Visualisera.",null,"Beiga kolumner innehåller formler och BÖR INTE ÄNDRAS när du uppdaterar tabellen."]
[]
[]
[null,"Sjukhus","Region","Vårdplatsbehov planerad vård","Vårdplatsbehov oplanerad vård","Sjukhusets egna disp vpl","Varav platser baserat på patienter som väntar på vård","Disponibla vårdplatser IVA","Riktvärde IVA kort sikt med hänsyn till riktlinjer","Riktvärde kort sikt","Visa"]
[null,"Akademiska sjukhuset","Uppsala",244.00893557223455,417.86232722597236,513,21.201544142841374,19.946428571428569,34.994913829340064,{"$f":"HospitalData[[#This Row],[Vårdplatsbehov planerad vård]]+HospitalData[[#This Row],[Vårdplatsbehov oplanerad vård]]","v":661.87126279820689}]
[null,"Aleris Specialistvård Ängelholm","Skåne",2.7379925222893298,8.0360012857602067E-2,0,0,0,0,{"$f":"HospitalData[[#This Row],[Vårdplatsbehov planerad vård]]+HospitalData[[#This Row],[Vårdplatsbehov oplanerad vård]]","v":2.8183525351469316}]
[null,"Art Clinic Göteborg","Västra Götaland",3.7446074201898192,0,0,0,0,0,{"$f":"HospitalData[[#This Row],[Vårdplatsbehov planerad vård]]+HospitalData[[#This Row],[Vårdplatsbehov oplanerad vård]]","v":3.7446074201898192}]
[null,"Art Clinic Jönköping","Jönköping",2.3065861374748349,0,0,0,0,0,{"$f":"HospitalData[[#This Row],[Vårdplatsbehov planerad vård]]+HospitalData[[#This Row],[Vårdplatsbehov oplanerad vård]]","v":2.3065861374748349}]
[null,"Art Clinic Stockholm","Stockholm",3.4794300511411282E-2,0,"",2.8178972625166564E-4,0,0,{"$f":"HospitalData[[#This Row],[Vårdplatsbehov planerad vård]]+HospitalData[[#This Row],[Vårdplatsbehov oplanerad vård]]","v":3.4794300511411282E-2}]
[null,"Art Clinic Uppsala","Uppsala",0.39114178889847573,3.2144005143040825E-3,0,0,0,0,{"$f":"HospitalData[[#This Row],[Vårdplatsbehov planerad vård]]+HospitalData[[#This Row],[Vårdplatsbehov oplanerad vård]]","v":0.39435618941277983}]
[null,"Arvidsjaurs sjukhem","Norrbotten",0.11504170261719873,4.1240758598521374,5,0,0,0,{"$f":"HospitalData[[#This Row],[Vårdplatsbehov planerad vård]]+HospitalData[[#This Row],[Vårdplatsbehov oplanerad vård]]","v":4.2391175624693362}]
[null,"Avesta lasarett","Dalarna",9.6031061259706636,29.051751848280297,40,0,0,0,{"$f":"HospitalData[[#This Row],[Vårdplatsbehov planerad vård]]+HospitalData[[#This Row],[Vårdplatsbehov oplanerad vård]]","v":38.654857974250959}]
[null,"Axlagården Umeå hospice","Västerbotten",6.6810468794938167,8.8653166184506595,0,0,0,0,{"$f":"HospitalData[[#This Row],[Vårdplatsbehov planerad vård]]+HospitalData[[#This Row],[Vårdplatsbehov oplanerad vård]]","v":15.546363497944476}]
[null,"Blackebergs sjukhus","Stockholm",71.513885651120674,16.248794599807137,"",0.57917181735592305,0,0,{"$f":"HospitalData[[#This Row],[Vårdplatsbehov planerad vård]]+HospitalData[[#This Row],[Vårdplatsbehov oplanerad vård]]","v":87.762680250927815}]
[null,"Blekingesjukhuset","Blekinge",45.247636851692072,248.37592414014787,261.7,-2.9192023775285207,7.9523809523809526,8.7094157208911298,{"$f":"HospitalData[[#This Row],[Vårdplatsbehov planerad vård]]+HospitalData[[#This Row],[Vårdplatsbehov oplanerad vård]]","v":293.62356099183995}]
[null,"Bollnäs närsjukhus","Gävleborg",4.8460223218100893,36.667791706846678,42.2,-2.8726024465435877E-2,2.75,4,{"$f":"HospitalData[[#This Row],[Vårdplatsbehov planerad vård]]+HospitalData[[#This Row],[Vårdplatsbehov oplanerad vård]]","v":41.513814028656768}]
[null,"Capio Arytmicenter Stockholm AB","Stockholm",6.3789550937587355E-2,0,"",5.1661449812805344E-4,0,0,{"$f":"HospitalData[[#This Row],[Vårdplatsbehov planerad vård]]+HospitalData[[#This Row],[Vårdplatsbehov oplanerad vård]]","v":6.3789550937587355E-2}]
[null,"Capio Gastro Center Göteborg AB, Mottagning","Västra Götaland",0.58383664078228359,0,0,0,0,0,{"$f":"HospitalData[[#This Row],[Vårdplatsbehov planerad vård]]+HospitalData[[#This Row],[Vårdplatsbehov oplanerad vård]]","v":0.58383664078228359}]
[null,"Capio Geriatrik Vårberg","Stockholm",30.418917222101317,32.340083574413377,"",0.24635466817551865,0,0,{"$f":"HospitalData[[#This Row],[Vårdplatsbehov planerad vård]]+HospitalData[[#This Row],[Vårdplatsbehov oplanerad vård]]","v":62.759000796514698}]
[null,"Capio Kirurgkliniken Stockholm","Stockholm",0.74517793595272497,0,"",6.0349966372231683E-3,0,0,{"$f":"HospitalData[[#This Row],[Vårdplatsbehov planerad vård]]+HospitalData[[#This Row],[Vårdplatsbehov oplanerad vård]]","v":0.74517793595272497}]
[null,"Capio Movement Halmstad","Halland",5.5795225769341394,0,0,0,0,0,{"$f":"HospitalData[[#This Row],[Vårdplatsbehov planerad vård]]+HospitalData[[#This Row],[Vårdplatsbehov oplanerad vård]]","v":5.5795225769341394}]
[null,"Capio Ortho Center Göteborg AB","Västra Götaland",2.2116767328156457,0,0,0,0,0,{"$f":"HospitalData[[#This Row],[Vårdplatsbehov planerad vård]]+HospitalData[[#This Row],[Vårdplatsbehov oplanerad vård]]","v":2.2116767328156457}]
[null,"Capio Ortho Center Skåne AB","Skåne",3.6698303134886396,0,"",0,0,0,{"$f":"HospitalData[[#This Row],[Vårdplatsbehov planerad vård]]+HospitalData[[#This Row],[Vårdplatsbehov oplanerad vård]]","v":3.6698303134886396}]
[null,"Capio Ortho Center Stockholm","Stockholm",0.74517793595272497,0,"",6.0349966372231683E-3,0,0,{"$f":"HospitalData[[#This Row],[Vårdplatsbehov planerad vård]]+HospitalData[[#This Row],[Vårdplatsbehov oplanerad vård]]","v":0.74517793595272497}]
[null,"Capio S:t Görans sjukhus","Stockholm",44.651471279451776,404.49193185470909,"",0.36472983567840578,7.5,7.1145859604875996,{"$f":"HospitalData[[#This Row],[Vårdplatsbehov planerad vård]]+HospitalData[[#This Row],[Vårdplatsbehov oplanerad vård]]","v":449.14340313416085}]
[null,"Capio Specialistvård Motala","Östergötland",5.4443485763589301,2.3786563805850212,25,0,0,0,{"$f":"HospitalData[[#This Row],[Vårdplatsbehov planerad vård]]+HospitalData[[#This Row],[Vårdplatsbehov oplanerad vård]]","v":7.8230049569439508}]
[null,"Capio Spine Center Göteborg","Västra Götaland",3.3103249928098935,0,0,0,0,0,{"$f":"HospitalData[[#This Row],[Vårdplatsbehov planerad vård]]+HospitalData[[#This Row],[Vårdplatsbehov oplanerad vård]]","v":3.3103249928098935}]
[null,"Capio Spine Center Skåne","Skåne",0.10353753235547887,0,0,0,0,0,{"$f":"HospitalData[[#This Row],[Vårdplatsbehov planerad vård]]+HospitalData[[#This Row],[Vårdplatsbehov oplanerad vård]]","v":0.10353753235547887}]
[null,"Capio Spine Center Stockholm","Stockholm",2.0818589805994421,0,"",1.6860418620724651E-2,0,0,{"$f":"HospitalData[[#This Row],[Vårdplatsbehov planerad vård]]+HospitalData[[#This Row],[Vårdplatsbehov oplanerad vård]]","v":2.0818589805994421}]
[null,"Capio Urokirurgiskt centrum CFTK Stockholm","Stockholm",2.8995250426176074E-2,0,"",2.3482477187638791E-4,0,0,{"$f":"HospitalData[[#This Row],[Vårdplatsbehov planerad vård]]+HospitalData[[#This Row],[Vårdplatsbehov oplanerad vård]]","v":2.8995250426176074E-2}]
[null,"Carema Rehabcentrum i Saltsjöbaden","Stockholm",18.641046498988597,0.28608164577306333,"",0.15096884583932982,0,0,{"$f":"HospitalData[[#This Row],[Vårdplatsbehov planerad vård]]+HospitalData[[#This Row],[Vårdplatsbehov oplanerad vård]]","v":18.92712814476166}]
[null,"Carlakliniken Sophiahemmet Stockholm","Stockholm",0.5625078582678158,0,"",4.555600574401927E-3,0,0,{"$f":"HospitalData[[#This Row],[Vårdplatsbehov planerad vård]]+HospitalData[[#This Row],[Vårdplatsbehov oplanerad vård]]","v":0.5625078582678158}]
[null,"Carlakliniken Uroclinic","Stockholm",1.4497625213088037E-2,0,"",1.1741238593819395E-4,0,0,{"$f":"HospitalData[[#This Row],[Vårdplatsbehov planerad vård]]+HospitalData[[#This Row],[Vårdplatsbehov oplanerad vård]]","v":1.4497625213088037E-2}]
[null,"Carlanderska sjukhuset","Västra Götaland",9.6922634454989929,3.5358405657344903E-2,0,0,0,0,{"$f":"HospitalData[[#This Row],[Vårdplatsbehov planerad vård]]+HospitalData[[#This Row],[Vårdplatsbehov oplanerad vård]]","v":9.7276218511563375}]
[null,"Centrallasarettet i Växjö","Kronoberg",29.82243768335465,191.69954998392802,208,1.5682530414219511,5.25,4.3664985287936107,{"$f":"HospitalData[[#This Row],[Vårdplatsbehov planerad vård]]+HospitalData[[#This Row],[Vårdplatsbehov oplanerad vård]]","v":221.52198766728267}]
[null,"Centralsjukhuset i Karlstad","Värmland",24.54947588358397,354.71359691417547,330,4.8278768039175883,7.5,7.8137873055905844,{"$f":"HospitalData[[#This Row],[Vårdplatsbehov planerad vård]]+HospitalData[[#This Row],[Vårdplatsbehov oplanerad vård]]","v":379.26307279775943}]
[null,"Centralsjukhuset i Kristianstad","Skåne",34.967457650936907,248.4819350691096,222.96459471766849,4.6405019357965968E-2,6.375,6.9849516603614967,{"$f":"HospitalData[[#This Row],[Vårdplatsbehov planerad vård]]+HospitalData[[#This Row],[Vårdplatsbehov oplanerad vård]]","v":283.44939272004649}]
[null,"Dalengeriatriken, Capio Legevisitten AB","Stockholm",60.605872440793227,73.342976534876243,"",0.49083073817602613,0,0,{"$f":"HospitalData[[#This Row],[Vårdplatsbehov planerad vård]]+HospitalData[[#This Row],[Vårdplatsbehov oplanerad vård]]","v":133.94884897566948}]
[null,"Danderyds sjukhus","Stockholm",86.896656894285911,472.92645451623275,"",0.70816106454762306,8.5,9.0640605296343004,{"$f":"HospitalData[[#This Row],[Vårdplatsbehov planerad vård]]+HospitalData[[#This Row],[Vårdplatsbehov oplanerad vård]]","v":559.82311141051866}]
[null,"Danviksgeriatriken Familjeläkarna i Saltsjöbaden AB","Stockholm",17.156489677168381,22.018643522982963,"",0.13894581751925875,0,0,{"$f":"HospitalData[[#This Row],[Vårdplatsbehov planerad vård]]+HospitalData[[#This Row],[Vårdplatsbehov oplanerad vård]]","v":39.175133200151343}]
[null,"Dorotea Sjukstuga","Västerbotten",8.3405234397469094E-2,2.7097396335583412,3,0,0,0,{"$f":"HospitalData[[#This Row],[Vårdplatsbehov planerad vård]]+HospitalData[[#This Row],[Vårdplatsbehov oplanerad vård]]","v":2.7931448679558102}]
[null,"Elisabethsjukhuset","Uppsala",2.6958720368611386,0.87110253937640636,0,0.79193185854649961,0,0,{"$f":"HospitalData[[#This Row],[Vårdplatsbehov planerad vård]]+HospitalData[[#This Row],[Vårdplatsbehov oplanerad vård]]","v":3.5669745762375449}]
[null,"Ersta sjukhus","Stockholm",57.76744662003798,35.324943747991,"",0.46908596430027255,2.75,4,{"$f":"HospitalData[[#This Row],[Vårdplatsbehov planerad vård]]+HospitalData[[#This Row],[Vårdplatsbehov oplanerad vård]]","v":93.092390368028987}]
[null,"Falu lasarett","Dalarna",52.723225758155579,210.30257152041145,234,2.8511808918915609,7.5,8.074232870954182,{"$f":"HospitalData[[#This Row],[Vårdplatsbehov planerad vård]]+HospitalData[[#This Row],[Vårdplatsbehov oplanerad vård]]","v":263.02579727856704}]
[null,"FrykCenter Rehabilitering","Värmland",10.736266896750074,7.3931211828993898E-2,0,0,0,0,{"$f":"HospitalData[[#This Row],[Vårdplatsbehov planerad vård]]+HospitalData[[#This Row],[Vårdplatsbehov oplanerad vård]]","v":10.810198108579067}]
[null,"Furuhöjdens rehabiliteringshem","Stockholm",35.406100295403604,0,"",0.28674452893825725,0,0,{"$f":"HospitalData[[#This Row],[Vårdplatsbehov planerad vård]]+HospitalData[[#This Row],[Vårdplatsbehov oplanerad vård]]","v":35.406100295403604}]
[null,"GynStockholm","Stockholm",0.35664158024196574,0,"",2.8883446940795722E-3,0,0,{"$f":"HospitalData[[#This Row],[Vårdplatsbehov planerad vård]]+HospitalData[[#This Row],[Vårdplatsbehov oplanerad vård]]","v":0.35664158024196574}]
[null,"Gällivare Sjukhus","Norrbotten",3.3231867526554653,39.463934426229514,48,1.4340869539784444,1.75,4,{"$f":"HospitalData[[#This Row],[Vårdplatsbehov planerad vård]]+HospitalData[[#This Row],[Vårdplatsbehov oplanerad vård]]","v":42.787121178884981}]
[null,"Hallands sjukhus","Halland",38.820057251222323,382.9160077145612,387,1.358740023727351,6,5.2733501471206381,{"$f":"HospitalData[[#This Row],[Vårdplatsbehov planerad vård]]+HospitalData[[#This Row],[Vårdplatsbehov oplanerad vård]]","v":421.7360649657835}]
[null,"Hallands sjukhus Halmstad","Halland",10.462697727926374,-2.3626486660237864,0,0,7,4.3469525010508612,{"$f":"HospitalData[[#This Row],[Vårdplatsbehov planerad vård]]+HospitalData[[#This Row],[Vårdplatsbehov oplanerad vård]]","v":8.1000490619025882}]
[null,"Handengeriatriken, Capio Legevisitten AB","Stockholm",47.033195716300206,32.2854387656702,"",0.38090926246068885,0,0,{"$f":"HospitalData[[#This Row],[Vårdplatsbehov planerad vård]]+HospitalData[[#This Row],[Vårdplatsbehov oplanerad vård]]","v":79.318634481970406}]
[null,"Haparanda sjukhem","Norrbotten",0.26747195858498707,5.6669881067180974,7,0,0,0,{"$f":"HospitalData[[#This Row],[Vårdplatsbehov planerad vård]]+HospitalData[[#This Row],[Vårdplatsbehov oplanerad vård]]","v":5.9344600653030843}]
[null,"Helsingborgs Lasarett AB","Skåne",42.622088275185831,324.41385406621663,287.44171220400727,7.588237254190715,6,5.9503152585119787,{"$f":"HospitalData[[#This Row],[Vårdplatsbehov planerad vård]]+HospitalData[[#This Row],[Vårdplatsbehov oplanerad vård]]","v":367.03594234140246}]
[null,"Hospice Gabriel","Västra Götaland",4.3457003163646819,0,0,0,0,0,{"$f":"HospitalData[[#This Row],[Vårdplatsbehov planerad vård]]+HospitalData[[#This Row],[Vårdplatsbehov oplanerad vård]]","v":4.3457003163646819}]
[null,"Hudiksvalls sjukhus","Gävleborg",6.6810340638970178,113.65589842494374,94.8,0.65112322121654642,4.5,4,{"$f":"HospitalData[[#This Row],[Vårdplatsbehov planerad vård]]+HospitalData[[#This Row],[Vårdplatsbehov oplanerad vård]]","v":120.33693248884076}]
[null,"Höglandssjukhuset","Jönköping",6.819401624905213,115.38887817422052,116,-0.21539849013648918,3.75,4.5629508196721309,{"$f":"HospitalData[[#This Row],[Vårdplatsbehov planerad vård]]+HospitalData[[#This Row],[Vårdplatsbehov oplanerad vård]]","v":122.20827979912573}]
[null,"Jakobsbergs sjukhus","Stockholm",9.5539350154250169,2.9990356798457087,"",7.7374762333269814E-2,0,0,{"$f":"HospitalData[[#This Row],[Vårdplatsbehov planerad vård]]+HospitalData[[#This Row],[Vårdplatsbehov oplanerad vård]]","v":12.552970695270727}]
[null,"Jokkmokks sjukhem","Norrbotten",0.35087719298245612,2.3754419800707169,4,0,0,0,{"$f":"HospitalData[[#This Row],[Vårdplatsbehov planerad vård]]+HospitalData[[#This Row],[Vårdplatsbehov oplanerad vård]]","v":2.7263191730531728}]
[null,"Kalix sjukhus","Norrbotten",0.66899626114466504,27.823593699774992,23,0,1.75,4,{"$f":"HospitalData[[#This Row],[Vårdplatsbehov planerad vård]]+HospitalData[[#This Row],[Vårdplatsbehov oplanerad vård]]","v":28.492589960919659}]
[null,"Karlskoga lasarett","Örebro",4.5505712463991763,29.394631951141115,65,2.2727742950042957,4,4,{"$f":"HospitalData[[#This Row],[Vårdplatsbehov planerad vård]]+HospitalData[[#This Row],[Vårdplatsbehov oplanerad vård]]","v":33.945203197540295}]
[null,"Karolinska universitetssjukhuset Huddinge","Stockholm",95.231178300805325,421.59816779170683,"",0.77184554268049954,7.5,10.751618327028162,{"$f":"HospitalData[[#This Row],[Vårdplatsbehov planerad vård]]+HospitalData[[#This Row],[Vårdplatsbehov oplanerad vård]]","v":516.8293460925122}]
[null,"Karolinska universitetssjukhuset Solna","Stockholm",51.017115310471695,9.7031179684988746,"",0.42404657305438126,31.714285714285715,30.223546132828915,{"$f":"HospitalData[[#This Row],[Vårdplatsbehov planerad vård]]+HospitalData[[#This Row],[Vårdplatsbehov oplanerad vård]]","v":60.720233278970568}]
[null,"Kiruna Sjukhus","Norrbotten",1.4351452401495544,24.27515268402443,20,0,0,0,{"$f":"HospitalData[[#This Row],[Vårdplatsbehov planerad vård]]+HospitalData[[#This Row],[Vårdplatsbehov oplanerad vård]]","v":25.710297924173986}]
[null,"Kirurghuset Västerås","Västmanland",2.3008340523439749E-2,0,"",0,0,0,{"$f":"HospitalData[[#This Row],[Vårdplatsbehov planerad vård]]+HospitalData[[#This Row],[Vårdplatsbehov oplanerad vård]]","v":2.3008340523439749E-2}]
[null,"Kristinehamns sjukhus","Värmland",4.3140638481449521E-2,10.642880102860817,9,0,0,0,{"$f":"HospitalData[[#This Row],[Vårdplatsbehov planerad vård]]+HospitalData[[#This Row],[Vårdplatsbehov oplanerad vård]]","v":10.686020741342267}]
[null,"Kullbergska sjukhuset","Södermanland",4.5879218235522119,42.806171648987466,40.799999999999997,0.50106533807622722,0,0,{"$f":"HospitalData[[#This Row],[Vårdplatsbehov planerad vård]]+HospitalData[[#This Row],[Vårdplatsbehov oplanerad vård]]","v":47.39409347253968}]
[null,"Lasarettet i Enköping","Uppsala",11.608208585652292,56.541305046608812,59,4.5015074064748397,0,0,{"$f":"HospitalData[[#This Row],[Vårdplatsbehov planerad vård]]+HospitalData[[#This Row],[Vårdplatsbehov oplanerad vård]]","v":68.149513632261105}]
[null,"Lasarettet i Finspång","Östergötland",2.8789186079953986,14.863387978142077,18,0,0,0,{"$f":"HospitalData[[#This Row],[Vårdplatsbehov planerad vård]]+HospitalData[[#This Row],[Vårdplatsbehov oplanerad vård]]","v":17.742306586137474}]
[null,"Lasarettet i Landskrona","Skåne",4.7600396905389264,51.571841851494696,49.423155737704917,-0.56351509807194611,0,0,{"$f":"HospitalData[[#This Row],[Vårdplatsbehov planerad vård]]+HospitalData[[#This Row],[Vårdplatsbehov oplanerad vård]]","v":56.331881542033621}]
[null,"Lasarettet i Motala","Östergötland",2.6273462531162326,51.563805850208936,42,1.5660865464725742,0,0,{"$f":"HospitalData[[#This Row],[Vårdplatsbehov planerad vård]]+HospitalData[[#This Row],[Vårdplatsbehov oplanerad vård]]","v":54.191152103325166}]
[null,"Lasarettet i Ystad","Skåne",14.150898682541738,93.296721311475409,77.527715947894649,0.78305283842324414,2.6666666666666665,4,{"$f":"HospitalData[[#This Row],[Vårdplatsbehov planerad vård]]+HospitalData[[#This Row],[Vårdplatsbehov oplanerad vård]]","v":107.44761999401715}]
[null,"Lasarettet Trelleborg","Skåne",15.195045359923709,44.847315975570559,52.184995446265937,2.4196642842837903,0,0,{"$f":"HospitalData[[#This Row],[Vårdplatsbehov planerad vård]]+HospitalData[[#This Row],[Vårdplatsbehov oplanerad vård]]","v":60.04236133549427}]
[null,"Lidingö sjukhus","Stockholm",12.502751983767121,1.3596914175506269,"",0.10125644163309847,0,0,{"$f":"HospitalData[[#This Row],[Vårdplatsbehov planerad vård]]+HospitalData[[#This Row],[Vårdplatsbehov oplanerad vård]]","v":13.862443401317748}]
[null,"Lindesbergs lasarett","Örebro",2.9590443781030311,17.652009000321442,42,1.6234102107173538,2,4,{"$f":"HospitalData[[#This Row],[Vårdplatsbehov planerad vård]]+HospitalData[[#This Row],[Vårdplatsbehov oplanerad vård]]","v":20.611053378424472}]
[null,"Ljungby lasarett","Kronoberg",4.9885124809979065,53.097107039537129,49.7,7.4678716258188102E-2,1.9404761904761905,4,{"$f":"HospitalData[[#This Row],[Vårdplatsbehov planerad vård]]+HospitalData[[#This Row],[Vårdplatsbehov oplanerad vård]]","v":58.085619520535033}]
[null,"Ludvika lasarett","Dalarna",12.505033074489504,18.640308582449371,29,0,0,0,{"$f":"HospitalData[[#This Row],[Vårdplatsbehov planerad vård]]+HospitalData[[#This Row],[Vårdplatsbehov oplanerad vård]]","v":31.145341656938875}]
[null,"Lycksele lasarett","Västerbotten",8.167361640556221,41.973063323690134,44,3.0250838148444013,2,4,{"$f":"HospitalData[[#This Row],[Vårdplatsbehov planerad vård]]+HospitalData[[#This Row],[Vårdplatsbehov oplanerad vård]]","v":50.140424964246357}]
[null,"Långbro sjukhus","Stockholm",9.6003274161068983,3.0954676952748317,"",7.7750481968272028E-2,0,0,{"$f":"HospitalData[[#This Row],[Vårdplatsbehov planerad vård]]+HospitalData[[#This Row],[Vårdplatsbehov oplanerad vård]]","v":12.695795111381731}]
[null,"Länssjukhuset Gävle-Sandviken","Gävleborg",31.341747458211685,262.41436837029892,279.5,1.675684760483759,6,5.4434636401849508,{"$f":"HospitalData[[#This Row],[Vårdplatsbehov planerad vård]]+HospitalData[[#This Row],[Vårdplatsbehov oplanerad vård]]","v":293.75611582851059}]
[null,"Länssjukhuset i Kalmar","Kalmar",74.539509391663074,171.89633558341367,263,1.016759894970517,6.7142857142857135,5.0638503572929796,{"$f":"HospitalData[[#This Row],[Vårdplatsbehov planerad vård]]+HospitalData[[#This Row],[Vårdplatsbehov oplanerad vård]]","v":246.43584497507675}]
[null,"Länssjukhuset i Sundsvall - Härnösand","Västernorrland",13.0481446187686,261.82703310832534,219.34,1.8872012768071365,5.5,6.1494325346784366,{"$f":"HospitalData[[#This Row],[Vårdplatsbehov planerad vård]]+HospitalData[[#This Row],[Vårdplatsbehov oplanerad vård]]","v":274.87517772709396}]
[null,"Länssjukhuset Ryhov","Jönköping",38.207956283820941,252.39762134361942,314,0.16366522831331504,8,7.9995796553173601,{"$f":"HospitalData[[#This Row],[Vårdplatsbehov planerad vård]]+HospitalData[[#This Row],[Vårdplatsbehov oplanerad vård]]","v":290.60557762744037}]
[null,"Malå Sjukstuga","Västerbotten",0,0,0,0,0,0,{"$f":"HospitalData[[#This Row],[Vårdplatsbehov planerad vård]]+HospitalData[[#This Row],[Vårdplatsbehov oplanerad vård]]","v":0}]
[null,"Mandometerkliniken","Stockholm",29.551959234358655,2.1922211507553842,"",0.23933340749641457,0,0,{"$f":"HospitalData[[#This Row],[Vårdplatsbehov planerad vård]]+HospitalData[[#This Row],[Vårdplatsbehov oplanerad vård]]","v":31.744180385114039}]
[null,"Mora lasarett","Dalarna",13.192592488860983,68.80035358405658,75,1.5756525981505995,4.5,4,{"$f":"HospitalData[[#This Row],[Vårdplatsbehov planerad vård]]+HospitalData[[#This Row],[Vårdplatsbehov oplanerad vård]]","v":81.992946072917562}]
[null,"Mälargården","Stockholm",10.417993478125064,0,"",8.4372540535186211E-2,0,0,{"$f":"HospitalData[[#This Row],[Vårdplatsbehov planerad vård]]+HospitalData[[#This Row],[Vårdplatsbehov oplanerad vård]]","v":10.417993478125064}]
[null,"Mälarsjukhuset","Södermanland",26.534201782408459,268.55583413693347,266.60000000000002,0.24613735905498876,8,7.3998318621269439,{"$f":"HospitalData[[#This Row],[Vårdplatsbehov planerad vård]]+HospitalData[[#This Row],[Vårdplatsbehov oplanerad vård]]","v":295.09003591934191}]
[null,"Nacka kommun Hallens äldrecentrum","Stockholm",9.5945283660216631,2.2822243651558982,"",7.7703517013896772E-2,0,0,{"$f":"HospitalData[[#This Row],[Vårdplatsbehov planerad vård]]+HospitalData[[#This Row],[Vårdplatsbehov oplanerad vård]]","v":11.876752731177561}]
[null,"Nacka Närsjukhus","Stockholm",31.801990667429916,37.174541947926713,"",0.25755580979402232,0,0,{"$f":"HospitalData[[#This Row],[Vårdplatsbehov planerad vård]]+HospitalData[[#This Row],[Vårdplatsbehov oplanerad vård]]","v":68.976532615356632}]
[null,"Norra Älvsborgs Länssjukhus och Uddevalla sjukhus","Västra Götaland",54.631484191203349,429.27547412407591,381,1.3555854279016546,7.5,12.706473308112651,{"$f":"HospitalData[[#This Row],[Vårdplatsbehov planerad vård]]+HospitalData[[#This Row],[Vårdplatsbehov oplanerad vård]]","v":483.90695831527927}]
[null,"Norrlands universitetssjukhus","Västerbotten",118.76250710744213,255.69668916747028,294,13.583789822426304,14.714285714285715,15.07473728457335,{"$f":"HospitalData[[#This Row],[Vårdplatsbehov planerad vård]]+HospitalData[[#This Row],[Vårdplatsbehov oplanerad vård]]","v":374.45919627491241}]
[null,"Norrtälje sjukhus","Stockholm",26.450321217506204,87.942269366763099,"",0.21603879012627686,3,4,{"$f":"HospitalData[[#This Row],[Vårdplatsbehov planerad vård]]+HospitalData[[#This Row],[Vårdplatsbehov oplanerad vård]]","v":114.3925905842693}]
[null,"Nya Karolinska Solna","Stockholm",192.68793670715311,354.6946319511411,"",1.5605280215045354,0,0,{"$f":"HospitalData[[#This Row],[Vårdplatsbehov planerad vård]]+HospitalData[[#This Row],[Vårdplatsbehov oplanerad vård]]","v":547.38256865829419}]
[null,"Nyköpings lasarett","Södermanland",9.1799928967283169,125.8330761812922,125.9,-0.18460301929124165,5.5,4.4231189575451868,{"$f":"HospitalData[[#This Row],[Vårdplatsbehov planerad vård]]+HospitalData[[#This Row],[Vårdplatsbehov oplanerad vård]]","v":135.01306907802052}]
[null,"Nynäshamns sjukhus","Stockholm",5.8454424859170961,9.5821279331404696,"",4.7340674010279804E-2,0,0,{"$f":"HospitalData[[#This Row],[Vårdplatsbehov planerad vård]]+HospitalData[[#This Row],[Vårdplatsbehov oplanerad vård]]","v":15.427570419057567}]
[null,"Ortho o Spine Center","Stockholm",9.4814468893595745,7.3931211828993898E-2,"",7.6787700403578851E-2,0,0,{"$f":"HospitalData[[#This Row],[Vårdplatsbehov planerad vård]]+HospitalData[[#This Row],[Vårdplatsbehov oplanerad vård]]","v":9.5553781011885679}]
[null,"Ortopediska Huset","Stockholm",4.3289908886280877,9.643201542912247E-3,"",3.5059338441144734E-2,0,0,{"$f":"HospitalData[[#This Row],[Vårdplatsbehov planerad vård]]+HospitalData[[#This Row],[Vårdplatsbehov oplanerad vård]]","v":4.3386340901710003}]
[null,"Oskarshamns sjukhus","Kalmar",6.6862818693862245,22.30633236901318,29,2.824333041584769E-2,0,0,{"$f":"HospitalData[[#This Row],[Vårdplatsbehov planerad vård]]+HospitalData[[#This Row],[Vårdplatsbehov oplanerad vård]]","v":28.992614238399405}]
[null,"Pajala sjukhem","Norrbotten",0.81679608858211106,5.564127290260366,6,0,0,0,{"$f":"HospitalData[[#This Row],[Vårdplatsbehov planerad vård]]+HospitalData[[#This Row],[Vårdplatsbehov oplanerad vård]]","v":6.3809233788424766}]
[null,"Perituskliniken AB","Skåne",1.0468794938165085,0,0,0,0,0,{"$f":"HospitalData[[#This Row],[Vårdplatsbehov planerad vård]]+HospitalData[[#This Row],[Vårdplatsbehov oplanerad vård]]","v":1.0468794938165085}]
[null,"Piteå Älvdals sjukhus","Norrbotten",13.332931651932267,62.482063645130182,62,3.3868862104597306,2.75,4,{"$f":"HospitalData[[#This Row],[Vårdplatsbehov planerad vård]]+HospitalData[[#This Row],[Vårdplatsbehov oplanerad vård]]","v":75.814995297062453}]
[null,"Rehab Station Stockholm","Stockholm",37.276293947891958,1.986499517839923,"",0.30189072672428419,0,0,{"$f":"HospitalData[[#This Row],[Vårdplatsbehov planerad vård]]+HospitalData[[#This Row],[Vårdplatsbehov oplanerad vård]]","v":39.262793465731882}]
[null,"Rehabcenter Mösseberg","Stockholm",6.20498359120168,0,"",5.0252501181547005E-2,0,0,{"$f":"HospitalData[[#This Row],[Vårdplatsbehov planerad vård]]+HospitalData[[#This Row],[Vårdplatsbehov oplanerad vård]]","v":6.20498359120168}]
[null,"Ryggkirurgiskt Centrum AB","Stockholm",0.75097698603796026,1.9286403085824494E-2,"",6.0819615915984459E-3,0,0,{"$f":"HospitalData[[#This Row],[Vårdplatsbehov planerad vård]]+HospitalData[[#This Row],[Vårdplatsbehov oplanerad vård]]","v":0.77026338912378478}]
[null,"S:t Eriks sjukhus","Stockholm",2.7023573397196099,5.6155576984892317,"",2.1885668738879351E-2,0,0,{"$f":"HospitalData[[#This Row],[Vårdplatsbehov planerad vård]]+HospitalData[[#This Row],[Vårdplatsbehov oplanerad vård]]","v":8.3179150382088416}]
[null,"Sabbatsbergs sjukhem","Stockholm",47.160774818175391,28.277081324333011,"",0.38194249145694481,0,0,{"$f":"HospitalData[[#This Row],[Vårdplatsbehov planerad vård]]+HospitalData[[#This Row],[Vårdplatsbehov oplanerad vård]]","v":75.437856142508394}]
[null,"Sahlgrenska universitetssjukhuset","Västra Götaland",295.9996081871422,885.27746705239485,969,9.9054177931243643,49.785714285714285,55.734218684321142,{"$f":"HospitalData[[#This Row],[Vårdplatsbehov planerad vård]]+HospitalData[[#This Row],[Vårdplatsbehov oplanerad vård]]","v":1181.277075239537}]
[null,"Simrishamns sjukhus","Skåne",7.1901064135749218E-2,39.929283188685311,34,0,0,0,{"$f":"HospitalData[[#This Row],[Vårdplatsbehov planerad vård]]+HospitalData[[#This Row],[Vårdplatsbehov oplanerad vård]]","v":40.001184252821062}]
[null,"Sjukhem NÖSO","Stockholm",13.592973399791344,2.0636451301832208,"",0.11008585305565061,0,0,{"$f":"HospitalData[[#This Row],[Vårdplatsbehov planerad vård]]+HospitalData[[#This Row],[Vårdplatsbehov oplanerad vård]]","v":15.656618529974565}]
[null,"Sjukhusen i Väster","Västra Götaland",49.276077478680421,232.8408550305368,229,0.47694029145004624,7.5,8.7865910046237907,{"$f":"HospitalData[[#This Row],[Vårdplatsbehov planerad vård]]+HospitalData[[#This Row],[Vårdplatsbehov oplanerad vård]]","v":282.11693250921724}]
[null,"Sjukhuset i Arvika","Värmland",5.0586601760500631,38.3621343619415,36,1.7966526983393933,2,4,{"$f":"HospitalData[[#This Row],[Vårdplatsbehov planerad vård]]+HospitalData[[#This Row],[Vårdplatsbehov oplanerad vård]]","v":43.420794537991561}]
[null,"Sjukhuset i Hässleholm","Skåne",20.446072697717792,43.972999035679841,63.796106557377051,10.063559036515604,0,0,{"$f":"HospitalData[[#This Row],[Vårdplatsbehov planerad vård]]+HospitalData[[#This Row],[Vårdplatsbehov oplanerad vård]]","v":64.419071733397629}]
[null,"Sjukhuset i Säffle","Värmland",0,13.484410157505625,13,0,0,0,{"$f":"HospitalData[[#This Row],[Vårdplatsbehov planerad vård]]+HospitalData[[#This Row],[Vårdplatsbehov oplanerad vård]]","v":13.484410157505625}]
[null,"Sjukhuset i Torsby","Värmland",5.8938284277207256,48.032111861137899,40,3.3524134147785336,4,4.1260109289617484,{"$f":"HospitalData[[#This Row],[Vårdplatsbehov planerad vård]]+HospitalData[[#This Row],[Vårdplatsbehov oplanerad vård]]","v":53.925940288858627}]
[null,"Skaraborgs sjukhus","Västra Götaland",16.706353722238866,392.63494053359051,342,0.23589067938583255,7.5,8.3122740647330815,{"$f":"HospitalData[[#This Row],[Vårdplatsbehov planerad vård]]+HospitalData[[#This Row],[Vårdplatsbehov oplanerad vård]]","v":409.34129425582938}]
[null,"Skellefteå lasarett","Västerbotten",9.0033882980022781,112.08235294117647,92,2.719666698922611,6.5,6.0227826817990744,{"$f":"HospitalData[[#This Row],[Vårdplatsbehov planerad vård]]+HospitalData[[#This Row],[Vårdplatsbehov oplanerad vård]]","v":121.08574123917874}]
[null,"Skånes universitetssjukhus Lund","Skåne",145.91998849582973,429.58502089360337,"",0,30,29.095302648171497,{"$f":"HospitalData[[#This Row],[Vårdplatsbehov planerad vård]]+HospitalData[[#This Row],[Vårdplatsbehov oplanerad vård]]","v":575.5050093894331}]
[null,"Skånes universitetssjukhus Malmö","Skåne",105.78708645406927,541.32449373191901,"",17.967615645901294,9.5,6.8651639344262287,{"$f":"HospitalData[[#This Row],[Vårdplatsbehov planerad vård]]+HospitalData[[#This Row],[Vårdplatsbehov oplanerad vård]]","v":647.11158018598826}]
[null,"Sollefteå sjukhus","Västernorrland",3.0334126052995951,35.800707168113149,32.603999999999999,0.60390440857828365,2,4,{"$f":"HospitalData[[#This Row],[Vårdplatsbehov planerad vård]]+HospitalData[[#This Row],[Vårdplatsbehov oplanerad vård]]","v":38.834119773412745}]
[null,"Sollentuna sjukhus","Stockholm",69.168169891643032,68.527804564448729,"",0.56017449331112323,0,0,{"$f":"HospitalData[[#This Row],[Vårdplatsbehov planerad vård]]+HospitalData[[#This Row],[Vårdplatsbehov oplanerad vård]]","v":137.69597445609176}]
[null,"Sophiahemmet","Stockholm",9.1422024593733155,0.16714882674381226,"",7.4040250572625116E-2,0,0,{"$f":"HospitalData[[#This Row],[Vårdplatsbehov planerad vård]]+HospitalData[[#This Row],[Vårdplatsbehov oplanerad vård]]","v":9.3093512861171277}]
[null,"Sorsele Sjukstuga","Västerbotten",5.4644808743169404E-2,2.5683060109289619,3,0,0,0,{"$f":"HospitalData[[#This Row],[Vårdplatsbehov planerad vård]]+HospitalData[[#This Row],[Vårdplatsbehov oplanerad vård]]","v":2.6229508196721314}]
[null,"Specialist Center Skåne AB","Skåne",1.4207650273224044,0,0,0,0,0,{"$f":"HospitalData[[#This Row],[Vårdplatsbehov planerad vård]]+HospitalData[[#This Row],[Vårdplatsbehov oplanerad vård]]","v":1.4207650273224044}]
[null,"Specialistcenter Uppsala AB, S:t Johanniskliniken","Uppsala",0.53830663118454525,3.2144005143040825E-3,0,-1.3893541378008765E-2,0,0,{"$f":"HospitalData[[#This Row],[Vårdplatsbehov planerad vård]]+HospitalData[[#This Row],[Vårdplatsbehov oplanerad vård]]","v":0.54152103169884935}]
[null,"Specialistsjukvården i Falkenberg","Halland",4.4664941041127406,0.59144969463195118,"",0,0,0,{"$f":"HospitalData[[#This Row],[Vårdplatsbehov planerad vård]]+HospitalData[[#This Row],[Vårdplatsbehov oplanerad vård]]","v":5.0579437987446916}]
[null,"Stockholms sjukhem","Stockholm",106.03273128348327,10.05464480874317,"",0.85873070827476317,0,0,{"$f":"HospitalData[[#This Row],[Vårdplatsbehov planerad vård]]+HospitalData[[#This Row],[Vårdplatsbehov oplanerad vård]]","v":116.08737609222644}]
[null,"Stora Sköndals sjukhus","Stockholm",4.4797661908442032,18.897460623593698,"",3.6280427254901937E-2,0,0,{"$f":"HospitalData[[#This Row],[Vårdplatsbehov planerad vård]]+HospitalData[[#This Row],[Vårdplatsbehov oplanerad vård]]","v":23.377226814437901}]
[null,"Storumans Sjukstuga","Västerbotten",0.13517400057520854,5.9627129540340729,7,0,0,0,{"$f":"HospitalData[[#This Row],[Vårdplatsbehov planerad vård]]+HospitalData[[#This Row],[Vårdplatsbehov oplanerad vård]]","v":6.0978869546092813}]
[null,"Sunderby sjukhus","Norrbotten",14.405502990596803,194.9544519447123,176,2.3901449232974068,6.5,7.7109289617486336,{"$f":"HospitalData[[#This Row],[Vårdplatsbehov planerad vård]]+HospitalData[[#This Row],[Vårdplatsbehov oplanerad vård]]","v":209.3599549353091}]
[null,"Södermalms läkarhus","Stockholm",0.33634490494364244,0,"",2.7239673537661005E-3,0,0,{"$f":"HospitalData[[#This Row],[Vårdplatsbehov planerad vård]]+HospitalData[[#This Row],[Vårdplatsbehov oplanerad vård]]","v":0.33634490494364244}]
[null,"Södersjukhuset","Stockholm",55.940536647221499,504.01954355512697,"",0.45304743238111511,17.5,16.047225725094577,{"$f":"HospitalData[[#This Row],[Vårdplatsbehov planerad vård]]+HospitalData[[#This Row],[Vårdplatsbehov oplanerad vård]]","v":559.96008020234842}]
[null,"Södertälje sjukhus","Stockholm",46.442861990098955,147.82459016393443,"",0.37705813620191608,5.125,4,{"$f":"HospitalData[[#This Row],[Vårdplatsbehov planerad vård]]+HospitalData[[#This Row],[Vårdplatsbehov oplanerad vård]]","v":194.26745215403338}]
[null,"Södertälje Ögonklinik","Stockholm",0.80606796184769491,3.2144005143040825E-3,"",6.5281286581635846E-3,0,0,{"$f":"HospitalData[[#This Row],[Vårdplatsbehov planerad vård]]+HospitalData[[#This Row],[Vårdplatsbehov oplanerad vård]]","v":0.80928236236199902}]
[null,"Södra Älvsborgs sjukhus","Västra Götaland",42.910730983286641,293.48630665380904,289,1.8880965282967093,6.75,7.2208490962589318,{"$f":"HospitalData[[#This Row],[Vårdplatsbehov planerad vård]]+HospitalData[[#This Row],[Vårdplatsbehov oplanerad vård]]","v":336.39703763709565}]
[null,"Tärnaby Sjukstuga","Västerbotten",2.8760425654299683E-2,1.0414657666345226,2,0,0,0,{"$f":"HospitalData[[#This Row],[Vårdplatsbehov planerad vård]]+HospitalData[[#This Row],[Vårdplatsbehov oplanerad vård]]","v":1.0702261922888223}]
[null,"Universitetssjukhuset i Linköping","Östergötland",93.919492090091055,314.13130826100928,365,9.5767253371431096,20.928571428571431,24.408028583438423,{"$f":"HospitalData[[#This Row],[Vårdplatsbehov planerad vård]]+HospitalData[[#This Row],[Vårdplatsbehov oplanerad vård]]","v":408.05080035110035}]
[null,"Universitetssjukhuset Örebro","Örebro",153.44562441035296,299.77791706846676,380,11.724629299625333,12.892857142857142,12.754056326187474,{"$f":"HospitalData[[#This Row],[Vårdplatsbehov planerad vård]]+HospitalData[[#This Row],[Vårdplatsbehov oplanerad vård]]","v":453.2235414788197}]
[null,"Vilhelmina Sjukstuga","Västerbotten",0.31348863963186657,4.503375120540019,6,0,0,0,{"$f":"HospitalData[[#This Row],[Vårdplatsbehov planerad vård]]+HospitalData[[#This Row],[Vårdplatsbehov oplanerad vård]]","v":4.816863760171886}]
[null,"Visby lasarett","Gotland",20.221022385253001,102.88171006107362,133,0.27480438122654133,5,4,{"$f":"HospitalData[[#This Row],[Vårdplatsbehov planerad vård]]+HospitalData[[#This Row],[Vårdplatsbehov oplanerad vård]]","v":123.10273244632663}]
[null,"Vrinnevisjukhuset i Norrköping","Östergötland",16.78607659368765,200.50810028929604,188,4.4302238470669986,5,5.4258091635140815,{"$f":"HospitalData[[#This Row],[Vårdplatsbehov planerad vård]]+HospitalData[[#This Row],[Vårdplatsbehov oplanerad vård]]","v":217.29417688298369}]
[null,"Vårdgivare Bromma sjukhus","Stockholm",5.9237296620677711,8.6788813886210223E-2,"",4.7974700894346051E-2,0,0,{"$f":"HospitalData[[#This Row],[Vårdplatsbehov planerad vård]]+HospitalData[[#This Row],[Vårdplatsbehov oplanerad vård]]","v":6.0105184759539814}]
[null,"Värnamo sjukhus","Jönköping",5.3961824596273331,88.629572484731597,98,0.23656209724596963,3.75,4.2668852459016398,{"$f":"HospitalData[[#This Row],[Vårdplatsbehov planerad vård]]+HospitalData[[#This Row],[Vårdplatsbehov oplanerad vård]]","v":94.025754944358937}]
[null,"Västerviks sjukhus","Kalmar",23.142729068979914,64.595596271295392,111,1.4027520773204361,5,4.6839848675914242,{"$f":"HospitalData[[#This Row],[Vårdplatsbehov planerad vård]]+HospitalData[[#This Row],[Vårdplatsbehov oplanerad vård]]","v":87.73832534027531}]
[null,"Västmanlands sjukhus Köping","Västmanland",12.926696549548522,63.415300546448094,67,0.46768015610589775,0,0,{"$f":"HospitalData[[#This Row],[Vårdplatsbehov planerad vård]]+HospitalData[[#This Row],[Vårdplatsbehov oplanerad vård]]","v":76.341997095996618}]
[null,"Västmanlands sjukhus Sala","Västmanland",16.397470188906059,3.7319189971070399,42,4.8185228204850068,0,0,{"$f":"HospitalData[[#This Row],[Vårdplatsbehov planerad vård]]+HospitalData[[#This Row],[Vårdplatsbehov oplanerad vård]]","v":20.1293891860131}]
[null,"Västmanlands sjukhus Västerås","Västmanland",63.721175986095631,298.87270973963354,302,6.7317598227364064,7.375,7.624968474148802,{"$f":"HospitalData[[#This Row],[Vårdplatsbehov planerad vård]]+HospitalData[[#This Row],[Vårdplatsbehov oplanerad vård]]","v":362.59388572572914}]
[null,"Åsele Sjukstuga","Västerbotten",6.9025021570319242E-2,2.1825779492124719,3,0,0,0,{"$f":"HospitalData[[#This Row],[Vårdplatsbehov planerad vård]]+HospitalData[[#This Row],[Vårdplatsbehov oplanerad vård]]","v":2.2516029707827911}]
[null,"Ängelholms sjukhus","Skåne",12.297461973297327,54.570877531340408,58.670992714025502,2.6598433365415035,0,0,{"$f":"HospitalData[[#This Row],[Vårdplatsbehov planerad vård]]+HospitalData[[#This Row],[Vårdplatsbehov oplanerad vård]]","v":66.868339504637731}]
[null,"Örnsköldsviks sjukhus","Västernorrland",5.8825895954014467,99.193281902925108,92.046000000000006,-3.7744025536142742E-2,3.75,4,{"$f":"HospitalData[[#This Row],[Vårdplatsbehov planerad vård]]+HospitalData[[#This Row],[Vårdplatsbehov oplanerad vård]]","v":105.07587149832655}]
[null,"Östersunds sjukhus","Jämtland Härjedalen",23.784457139260642,188.773481195757,200.91,2.5722627187832185,6.375,5.6602774274905414,{"$f":"HospitalData[[#This Row],[Vårdplatsbehov planerad vård]]+HospitalData[[#This Row],[Vårdplatsbehov oplanerad vård]]","v":212.55793833501764}]
[null,"Överkalix sjukhem","Norrbotten",0.66148979004889275,4.1658630665380905,5,0,0,0,{"$f":"HospitalData[[#This Row],[Vårdplatsbehov planerad vård]]+HospitalData[[#This Row],[Vårdplatsbehov oplanerad vård]]","v":4.827352856586983}]
[null,"Övertorneå sjukhem","Norrbotten",3.738855335058959E-2,5.93699774991964,7,0,0,0,{"$f":"HospitalData[[#This Row],[Vårdplatsbehov planerad vård]]+HospitalData[[#This Row],[Vårdplatsbehov oplanerad vård]]","v":5.9743863032702293}]
[null,null,"Sverige",{"$f":"SUBTOTAL(109,HospitalData[Vårdplatsbehov planerad vård])","v":3660.9286714411051},{"$f":"SUBTOTAL(109,HospitalData[Vårdplatsbehov oplanerad vård])","v":13421.175120540014},{"$f":"SUBTOTAL(109,HospitalData[Sjukhusets egna disp vpl])","v":10152.109273324944},{"$f":"SUBTOTAL(109,HospitalData[Varav platser baserat på patienter som väntar på vård])","v":187.52841259727515},{"$f":"SUBTOTAL(109,HospitalData[Disponibla vårdplatser IVA])","v":455.50595238095246},{"$f":"SUBTOTAL(109,HospitalData[Riktvärde IVA kort sikt med hänsyn till riktlinjer])","v":499.23702501050855},{"$f":"SUBTOTAL(109,HospitalData[Riktvärde kort sikt])","v":17082.103791981135}]

{"sheet":"Regiondata","index":3,"n_rows":26,"n_cols":12,"rows_kept":26,"cut":false,"hidden":true,"merged":[[0,1,1,5],[1,6,1,9]]}
[null,"I denna flik klistras data för regionerna in - detta gäller kolumn C till I. Kolumn C, D, E, F, J, K och L innehåller data för somatisk vård exklusive IVA och kolumn G, H och I innehåller regiondata för IVA.\n\nI sista raden summeras alla rader ovan för att ge värden för hela Sverige.\n\nGrunden för väntetidsdata behöver uppdateras årligen baserat på vilken data som samlats in från regionerna"]
[null,null,null,null,null,null,"Beiga kolumner innehåller formler och BÖR INTE ÄNDRAS när du uppdaterar tabellen."]
[]
[null,"Region","Vårdplatsbehov planerad vård","Vårdplatsbehov oplanerad vård","Regionernas egna disp vpl","Grund för väntetidsdata","Riktvärde IVA kort sikt utan hänsyn till riktlinjer","Riktvärde IVA kort sikt med hänsyn till riktlinjer","Regionernas disponibla IVA-platser","Riktvärde kort sikt","Gap riktvärde vs disp. vpl","Varav platser baserat på patienter som väntar på vård"]
[null,"Blekinge",45.247636851692072,248.37270973963359,261.7,"Fördelning av väntande baseras på den data som regionen rapporterat in till Socialstyrelsen efter särskild förfrågan",6.8775577973938624,8.7094157208911298,7.9523809523809526,{"$f":"D5+C5","v":293.62034659132564},{"$f":"E5-J5","v":-31.920346591325654},{"$f":"SUMIF(Data!$C$6:$C$149,'Regiondata'!B5,Data!$G$6:$G$149)","v":-2.9192023775285207}]
[null,"Dalarna",88.023957447476747,326.79498553519767,377,"Fördelning av väntande baseras på den data som regionen rapporterat in till Socialstyrelsen efter särskild förfrågan",11.962421185372005,12.074232870954182,12,{"$f":"D6+C6","v":414.8189429826744},-37.8189429826744,{"$f":"SUMIF(Data!$C$6:$C$149,'Regiondata'!B6,Data!$G$6:$G$149)","v":4.42683349004216}]
[null,"Gotland",20.221022385253001,102.88171006107362,133,"Fördelning av väntande baseras på den data som regionen rapporterat in till Socialstyrelsen efter särskild förfrågan",2.7435897435897436,4,5,123.10273244632663,9.8972675536733732,{"$f":"SUMIF(Data!$C$6:$C$149,'Regiondata'!B7,Data!$G$6:$G$149)","v":0.27480438122654133}]
[null,"Gävleborg",42.868803843918791,412.74127290260367,416.5,"Fördelning av väntande baseras på den data som regionen rapporterat in till Socialstyrelsen efter särskild förfrågan",11.690878520386716,13.443463640184952,13.25,455.61007674652245,-39.110076746522452,{"$f":"SUMIF(Data!$C$6:$C$149,'Regiondata'!B8,Data!$G$6:$G$149)","v":2.2980819572348694}]
[null,"Halland",59.331647702761003,381.14480874316939,395,"Fördelning av väntande baseras på den data som regionen rapporterat in till Socialstyrelsen efter särskild förfrågan",9.6203026481714993,9.6203026481714993,13,440.47645644593041,-45.47645644593041,{"$f":"SUMIF(Data!$C$6:$C$149,'Regiondata'!B9,Data!$G$6:$G$149)","v":1.358740023727351}]
[null,"Jämtland Härjedalen",23.784457139260642,188.773481195757,205.01,"Fördelning av väntande baseras på den data som regionen rapporterat in till Socialstyrelsen efter särskild förfrågan",5.6602774274905414,5.6602774274905414,6.375,212.55793833501764,-7.5479383350176477,{"$f":"SUMIF(Data!$C$6:$C$149,'Regiondata'!B10,Data!$G$6:$G$149)","v":0}]
[null,"Jönköping",52.730126505828324,456.41607200257152,528,"Fördelning av väntande baseras på den data som regionen rapporterat in till Socialstyrelsen efter särskild förfrågan",16.829415720891131,16.829415720891131,15.5,509.14619850839983,18.853801491600166,{"$f":"SUMIF(Data!$C$6:$C$149,'Regiondata'!B11,Data!$G$6:$G$149)","v":0.18482883542279549}]
[null,"Kalmar",104.3685203300292,258.7982642237223,403,"Fördelning av väntande baseras på den data som regionen rapporterat in till Socialstyrelsen efter särskild förfrågan",9.7478352248844047,9.7478352248844047,11.714285714285714,363.16678455375148,39.833215446248516,{"$f":"SUMIF(Data!$C$6:$C$149,'Regiondata'!B12,Data!$G$6:$G$149)","v":2.4477553027068009}]
[null,"Kronoberg",34.810950164352562,244.79665702346514,257.7,"Fördelning av väntande baseras på den data som regionen rapporterat in till Socialstyrelsen efter särskild förfrågan",6.5902690205968888,8.3664985287936098,7.1904761904761907,279.60760718781773,-21.907607187817746,{"$f":"SUMIF(Data!$C$6:$C$149,'Regiondata'!B13,Data!$G$6:$G$149)","v":1.6429317576801392}]
[null,"Norrbotten",35.414828182644989,376.83269045323044,363,"Fördelning av väntande baseras på den data som regionen rapporterat in till Socialstyrelsen efter särskild förfrågan",15.000382513661203,19.710928961748635,12.75,412.24751863587545,-49.247518635875451,{"$f":"SUMIF(Data!$C$6:$C$149,'Regiondata'!B14,Data!$G$6:$G$149)","v":7.2111180877355823}]
[null,"Skåne",405.19416919088388,1872.0779170684666,1847.4228052618475,"Fördelning av väntande baseras på den data som regionen rapporterat in till Socialstyrelsen efter särskild förfrågan",50.619176124422019,52.895733501471199,54.541666666666664,2277.2720862593505,-429.849280997503,{"$f":"SUMIF(Data!$C$6:$C$149,'Regiondata'!B15,Data!$G$6:$G$149)","v":40.96486231714217}]
[null,"Stockholm",1378.7512123491713,2809.5189006750238,4007,"Fördelning av väntande antas utifrån andel av regionens planerade slutenvård",80.701839533417399,85.201036675073553,83.589285714285722,4188.2701130241949,-181.27011302419487,{"$f":"SUMIF(Data!$C$6:$C$149,'Regiondata'!B16,Data!$G$6:$G$149)","v":11.189118590183632}]
[null,"Södermanland",40.304992545254407,437.19508196721318,433.3,"Fördelning av väntande baseras på den data som regionen rapporterat in till Socialstyrelsen efter särskild förfrågan",11.82295081967213,11.82295081967213,13.5,477.50007451246756,-44.200074512467552,{"$f":"SUMIF(Data!$C$6:$C$149,'Regiondata'!B17,Data!$G$6:$G$149)","v":0.56259967783997433}]
[null,"Uppsala",259.23958857226563,475.28437801350054,619,"Fördelning av väntande baseras på den data som regionen rapporterat in till Socialstyrelsen efter särskild förfrågan",34.621689785624213,34.994913829340064,19.946428571428569,734.52396658576617,-115.52396658576617,{"$f":"SUMIF(Data!$C$6:$C$149,'Regiondata'!B18,Data!$G$6:$G$149)","v":26.481089866484705}]
[null,"Värmland",46.281372022586275,465.30906460945039,428,"Fördelning av väntande baseras på den data som regionen rapporterat in till Socialstyrelsen efter särskild förfrågan",13.567339218158889,15.939798234552331,13.5,511.59043663203664,-83.590436632036642,{"$f":"SUMIF(Data!$C$6:$C$149,'Regiondata'!B19,Data!$G$6:$G$149)","v":9.9769429170355153}]
[null,"Västerbotten",143.29880205606676,437.58559948569598,454,"Fördelning av väntande baseras på den data som regionen rapporterat in till Socialstyrelsen efter särskild förfrågan",23.352711223203023,25.097519966372424,23.214285714285715,580.88440154176271,-126.88440154176271,{"$f":"SUMIF(Data!$C$6:$C$149,'Regiondata'!B20,Data!$G$6:$G$149)","v":19.328540336193317}]
[null,"Västernorrland",21.967022862035069,396.82423657987783,343.99,"Fördelning av väntande baseras på den data som regionen rapporterat in till Socialstyrelsen efter särskild förfrågan",10.335880622110132,14.149432534678436,11.25,418.79125944191293,-74.801259441912919,{"$f":"SUMIF(Data!$C$6:$C$149,'Regiondata'!B21,Data!$G$6:$G$149)","v":2.4911056853854201}]
[null,"Västmanland",93.068351065073657,366.01992928318873,411,"Fördelning av väntande baseras på den data som regionen rapporterat in till Socialstyrelsen efter särskild förfrågan",7.624968474148802,7.624968474148802,7.375,459.0882803482624,-48.088280348262401,{"$f":"SUMIF(Data!$C$6:$C$149,'Regiondata'!B22,Data!$G$6:$G$149)","v":12.017962799327311}]
[null,"Västra Götaland",483.41266411101282,2233.5439729990358,2209,"Fördelning av väntande baseras på den data som regionen rapporterat in till Socialstyrelsen efter särskild förfrågan",89.746471731820094,92.760406158049591,79.035714285714292,2716.9566371100486,-507.95663711004863,{"$f":"SUMIF(Data!$C$6:$C$149,'Regiondata'!B23,Data!$G$6:$G$149)","v":13.861930720158606}]
[null,"Örebro",160.95811607742058,346.82455801992927,487,"Fördelning av väntande baseras på den data som regionen rapporterat in till Socialstyrelsen efter särskild förfrågan",18.313564522908784,20.754056326187474,18.892857142857142,507.78267409734985,-20.782674097349854,{"$f":"SUMIF(Data!$C$6:$C$149,'Regiondata'!B24,Data!$G$6:$G$149)","v":15.620813805346982}]
[null,"Östergötland",121.65618212124929,583.44525875924148,638,"Fördelning av väntande baseras på den data som regionen rapporterat in till Socialstyrelsen efter särskild förfrågan",27.845804960067255,29.833837746952504,25.928571428571431,705.10144088049083,-67.101440880490827,{"$f":"SUMIF(Data!$C$6:$C$149,'Regiondata'!B25,Data!$G$6:$G$149)","v":15.573035730682683}]
[null,"Sverige",3660.9344235262374,13421.181549341049,15217.622805261846,"-",465.27532681799079,499.23702501050866,455.50595238095241,{"$f":"SUM('Regiondata'!$J$5:$J$25)","v":17082.115972867283},{"$f":"SUM('Regiondata'!$K$5:$K$25)","v":-1864.4931676054373},{"$f":"SUM('Regiondata'!$L$5:$L$25)","v":184.99389390402803}]